[Event "*** Biggest EVER Titled Tuesday"]
[Site "Chess.com"]
[Date "2018.04.17"]
[Round "7"]
[White "Korchmar_Vasiliy"]
[Black "Koksik_13"]
[Result "1-0"]
[WhiteElo "2679"]
[BlackElo "2497"]
[TimeControl "180+2"]
[EndTime "14:36:39 PDT"]
[Termination "Korchmar_Vasiliy won by resignation"]

1. d4 {[%clk 0:03:01.4]} 1... e6 {[%clk 0:03:00.4]} 2. Bf4 {[%clk 0:03:01.4]}
2... Nf6 {[%clk 0:03:01.1]} 3. e3 {[%clk 0:03:02]} 3... b6 {[%clk 0:03:02]} 4.
Nf3 {[%clk 0:03:03]} 4... Bb7 {[%clk 0:03:03.4]} 5. Nbd2 {[%clk 0:03:03.8]} 5...
Be7 {[%clk 0:03:01.6]} 6. h3 {[%clk 0:03:04.5]} 6... Ne4 {[%clk 0:03:02.1]} 7.
Bd3 {[%clk 0:03:03.5]} 7... f5 {[%clk 0:03:02.3]} 8. O-O {[%clk 0:03:02.6]} 8...
O-O {[%clk 0:03:03.2]} 9. c4 {[%clk 0:03:01.5]} 9... d6 {[%clk 0:03:04.3]} 10.
Qc2 {[%clk 0:02:51.8]} 10... Nxd2 {[%clk 0:03:03.4]} 11. Nxd2 {[%clk 0:02:53.7]}
11... Nd7 {[%clk 0:03:04.8]} 12. b4 {[%clk 0:02:48.4]} 12... Qe8 {[%clk
0:03:03.3]} 13. Rab1 {[%clk 0:02:33.1]} 13... Kh8 {[%clk 0:02:59]} 14. c5 {[%clk
0:02:31.5]} 14... Bd5 {[%clk 0:02:45.4]} 15. Bc4 {[%clk 0:02:25.7]} 15... Bxc4
{[%clk 0:02:37.2]} 16. Nxc4 {[%clk 0:02:27.6]} 16... d5 {[%clk 0:02:20.2]} 17.
Nd2 {[%clk 0:02:22.4]} 17... Rc8 {[%clk 0:02:13.3]} 18. Nf3 {[%clk 0:02:23.6]}
18... Bf6 {[%clk 0:02:12.5]} 19. c6 {[%clk 0:02:21.5]} 19... Nb8 {[%clk
0:02:11.1]} 20. b5 {[%clk 0:02:23]} 20... Qe7 {[%clk 0:01:54.6]} 21. a4 {[%clk
0:02:22.9]} 21... g5 {[%clk 0:01:50.3]} 22. Be5 {[%clk 0:02:24.1]} 22... g4
{[%clk 0:01:51.7]} 23. hxg4 {[%clk 0:02:17.7]} 23... fxg4 {[%clk 0:01:51.8]} 24.
Bxf6+ {[%clk 0:02:19.2]} 24... Qxf6 {[%clk 0:01:13]} 25. Ne5 {[%clk 0:02:21.1]}
25... Qg5 {[%clk 0:01:03.6]} 26. Qe2 {[%clk 0:02:16.5]} 26... h5 {[%clk
0:01:03.3]} 27. g3 {[%clk 0:02:17.8]} 27... Kg7 {[%clk 0:00:49.7]} 28. Kg2
{[%clk 0:02:19.1]} 28... Rf5 {[%clk 0:00:44.5]} 29. Rh1 {[%clk 0:02:11.9]} 29...
Rcf8 {[%clk 0:00:45.4]} 30. Nd3 {[%clk 0:02:13.1]} 30... Rf3 {[%clk 0:00:06.9]}
31. Nf4 {[%clk 0:02:13.5]} 31... R8xf4 {[%clk 0:00:03.7]} 32. exf4 {[%clk
0:02:14.2]} 32... Qf5 {[%clk 0:00:04]} 33. Rbe1 {[%clk 0:02:09.5]} 33... Kf7
{[%clk 0:00:04.6]} 34. Qe5 {[%clk 0:02:02.2]} 34... Qxe5 {[%clk 0:00:04.8]} 35.
Rxe5 {[%clk 0:02:03.7]} 35... a6 {[%clk 0:00:03.4]} 36. Rhxh5 {[%clk 0:02:04.3]}
36... axb5 {[%clk 0:00:04.7]} 37. axb5 {[%clk 0:02:06.2]} 37... Rb3 {[%clk
0:00:06.2]} 38. Rh8 {[%clk 0:02:02.1]} 38... Rxb5 {[%clk 0:00:07]} 39. Rxb8
{[%clk 0:02:03.2]} 39... Rb2 {[%clk 0:00:08.3]} 40. Rb7 {[%clk 0:02:02.8]} 40...
Kf6 {[%clk 0:00:08.5]} 41. Rxc7 {[%clk 0:02:03.9]} 41... b5 {[%clk 0:00:10.4]}
42. Rb7 {[%clk 0:02:05]} 42... b4 {[%clk 0:00:12.3]} 43. c7 {[%clk 0:02:06.3]}
43... b3 {[%clk 0:00:14.2]} 44. c8=Q {[%clk 0:02:06.5]} 44... Rxf2+ {[%clk
0:00:16.1]} 1-0

[Event "*** Biggest EVER Titled Tuesday"]
[Site "Chess.com"]
[Date "2018.04.17"]
[Round "7"]
[White "Noukii"]
[Black "GMAkobianSTL"]
[Result "0-1"]
[WhiteElo "2624"]
[BlackElo "2650"]
[TimeControl "180+2"]
[EndTime "14:36:42 PDT"]
[Termination "GMAkobianSTL won by resignation"]

1. d4 {[%clk 0:03:01.9]} 1... d5 {[%clk 0:02:57.3]} 2. c4 {[%clk 0:03:01.9]}
2... e6 {[%clk 0:02:58.7]} 3. Nf3 {[%clk 0:03:02.7]} 3... c5 {[%clk 0:02:59.7]}
4. cxd5 {[%clk 0:03:03.5]} 4... exd5 {[%clk 0:03:00.1]} 5. g3 {[%clk 0:03:04.9]}
5... Nc6 {[%clk 0:02:58.9]} 6. Bg2 {[%clk 0:03:06.4]} 6... Nf6 {[%clk
0:02:57.7]} 7. O-O {[%clk 0:03:05.4]} 7... Be7 {[%clk 0:02:59.2]} 8. dxc5 {[%clk
0:03:06.4]} 8... Bxc5 {[%clk 0:02:58.5]} 9. a3 {[%clk 0:03:01]} 9... a6 {[%clk
0:02:57.1]} 10. b4 {[%clk 0:03:00.9]} 10... Ba7 {[%clk 0:02:58]} 11. Nc3 {[%clk
0:02:50.9]} 11... O-O {[%clk 0:02:58.5]} 12. Bg5 {[%clk 0:02:50.6]} 12... Be6
{[%clk 0:02:46]} 13. Rc1 {[%clk 0:02:14.6]} 13... Re8 {[%clk 0:02:38.7]} 14. e3
{[%clk 0:01:49.9]} 14... Rc8 {[%clk 0:02:11.1]} 15. Bxf6 {[%clk 0:01:47.8]}
15... gxf6 {[%clk 0:02:10.7]} 16. Nxd5 {[%clk 0:01:49.3]} 16... Qxd5 {[%clk
0:02:09.6]} 17. Nd4 {[%clk 0:01:36.6]} 17... Qe5 {[%clk 0:01:56.8]} 18. Nxc6
{[%clk 0:01:24]} 18... bxc6 {[%clk 0:01:56.2]} 19. Bxc6 {[%clk 0:01:21.8]} 19...
Rxc6 {[%clk 0:01:48.2]} 20. Rxc6 {[%clk 0:01:22.1]} 20... Qe4 {[%clk 0:01:47.2]}
21. Qc2 {[%clk 0:01:06.2]} 21... Qf3 {[%clk 0:01:42.5]} 22. Rxe6 {[%clk
0:01:03.5]} 22... Rxe6 {[%clk 0:01:37.7]} 23. Qd1 {[%clk 0:00:44]} 23... Rxe3
{[%clk 0:01:13.8]} 24. Qd7 {[%clk 0:00:41]} 24... Bb6 {[%clk 0:01:12.4]} 25.
Qc8+ {[%clk 0:00:28.2]} 25... Kg7 {[%clk 0:01:12.1]} 26. Qxa6 {[%clk 0:00:29.5]}
26... Re6 {[%clk 0:01:02.8]} 27. Qb5 {[%clk 0:00:30.7]} 27... Bd4 {[%clk
0:00:46.4]} 28. Qc4 {[%clk 0:00:22.6]} 28... Re4 {[%clk 0:00:46.7]} 29. Qc2
{[%clk 0:00:16.1]} 29... Re2 {[%clk 0:00:46.4]} 0-1

[Event "*** Biggest EVER Titled Tuesday"]
[Site "Chess.com"]
[Date "2018.04.17"]
[Round "7"]
[White "maximlavrov"]
[Black "omer1997"]
[Result "0-1"]
[WhiteElo "2462"]
[BlackElo "2120"]
[TimeControl "180+2"]
[EndTime "14:36:45 PDT"]
[Termination "omer1997 won on time"]

1. g3 {[%clk 0:03:00.6]} 1... d5 {[%clk 0:02:59.3]} 2. Nf3 {[%clk 0:02:56.7]}
2... Nf6 {[%clk 0:02:59.2]} 3. Bg2 {[%clk 0:02:57.6]} 3... Bf5 {[%clk
0:02:56.4]} 4. O-O {[%clk 0:02:59.1]} 4... e6 {[%clk 0:02:57]} 5. c4 {[%clk
0:03:00.1]} 5... c6 {[%clk 0:02:55.8]} 6. d3 {[%clk 0:03:01.3]} 6... Be7 {[%clk
0:02:54.4]} 7. cxd5 {[%clk 0:03:01.7]} 7... exd5 {[%clk 0:02:54.9]} 8. Nc3
{[%clk 0:03:00.6]} 8... O-O {[%clk 0:02:55.5]} 9. Nd4 {[%clk 0:03:01.5]} 9...
Bg6 {[%clk 0:02:55.7]} 10. e4 {[%clk 0:03:02.6]} 10... Nbd7 {[%clk 0:02:38.9]}
11. h3 {[%clk 0:02:26.9]} 11... Re8 {[%clk 0:02:17.8]} 12. f4 {[%clk 0:02:17.3]}
12... Bc5 {[%clk 0:02:10.8]} 13. Ne2 {[%clk 0:01:57]} 13... Qb6 {[%clk
0:02:03.1]} 14. Be3 {[%clk 0:01:50.8]} 14... dxe4 {[%clk 0:02:03.8]} 15. f5
{[%clk 0:01:52.2]} 15... Bh5 {[%clk 0:01:46.6]} 16. g4 {[%clk 0:01:45.6]} 16...
Bxg4 {[%clk 0:01:46.2]} 17. hxg4 {[%clk 0:01:47.5]} 17... Nxg4 {[%clk
0:01:48.1]} 18. b4 {[%clk 0:01:49]} 18... Nxe3 {[%clk 0:01:38.9]} 19. bxc5
{[%clk 0:01:49.1]} 19... Nxc5 {[%clk 0:01:32.7]} 20. Qd2 {[%clk 0:01:40.2]}
20... Nxf1 {[%clk 0:01:32.9]} 21. Rxf1 {[%clk 0:01:37.7]} 21... exd3 {[%clk
0:01:33.7]} 22. Ng3 {[%clk 0:01:16.3]} 22... Ne4 {[%clk 0:01:09.5]} 23. Nxe4
{[%clk 0:01:14.8]} 23... Rxe4 {[%clk 0:01:08.9]} 24. Bxe4 {[%clk 0:00:29.4]}
24... Qxd4+ {[%clk 0:01:09]} 25. Qf2 {[%clk 0:00:31.3]} 25... Qxe4 {[%clk
0:01:09.9]} 26. f6 {[%clk 0:00:30.4]} 26... Qg4+ {[%clk 0:01:05.1]} 27. Kh1
{[%clk 0:00:31.3]} 27... Qh5+ {[%clk 0:01:04.6]} 28. Kg1 {[%clk 0:00:31.3]}
28... Qg5+ {[%clk 0:01:05.3]} 29. Kh1 {[%clk 0:00:32.2]} 29... Qxf6 {[%clk
0:01:05.6]} 0-1

[Event "*** Biggest EVER Titled Tuesday"]
[Site "Chess.com"]
[Date "2018.04.17"]
[Round "7"]
[White "IMVoja"]
[Black "nubair1198"]
[Result "1-0"]
[WhiteElo "2321"]
[BlackElo "2517"]
[TimeControl "180+2"]
[EndTime "14:36:47 PDT"]
[Termination "IMVoja won by resignation"]

1. Nf3 {[%clk 0:03:01.9]} 1... d5 {[%clk 0:03:00]} 2. c4 {[%clk 0:03:00.9]} 2...
d4 {[%clk 0:03:00.5]} 3. e3 {[%clk 0:03:00.8]} 3... c5 {[%clk 0:03:01.6]} 4. b4
{[%clk 0:03:01.5]} 4... f6 {[%clk 0:03:00]} 5. exd4 {[%clk 0:02:54.3]} 5... cxd4
{[%clk 0:03:00.6]} 6. c5 {[%clk 0:02:55.7]} 6... e5 {[%clk 0:03:01.1]} 7. Bc4
{[%clk 0:02:56.6]} 7... a5 {[%clk 0:02:54]} 8. Qb3 {[%clk 0:02:53.6]} 8... Nh6
{[%clk 0:02:32.8]} 9. d3 {[%clk 0:02:51.5]} 9... a4 {[%clk 0:02:34]} 10. Qc2
{[%clk 0:02:49.4]} 10... Nf5 {[%clk 0:01:55.2]} 11. Nbd2 {[%clk 0:02:36.9]}
11... Bd7 {[%clk 0:01:12.5]} 12. a3 {[%clk 0:02:30.5]} 12... b6 {[%clk
0:01:13.4]} 13. Qa2 {[%clk 0:02:27.1]} 13... bxc5 {[%clk 0:01:12.5]} 14. Bf7+
{[%clk 0:02:24.9]} 14... Ke7 {[%clk 0:01:13.7]} 15. bxc5 {[%clk 0:02:22.8]}
15... Qa5 {[%clk 0:01:14]} 16. O-O {[%clk 0:02:16.6]} 16... Na6 {[%clk 0:01:08]}
17. Ne4 {[%clk 0:02:15.2]} 17... Kd8 {[%clk 0:00:41.8]} 18. Bd2 {[%clk
0:02:13.6]} 18... Qc7 {[%clk 0:00:42.5]} 19. Rac1 {[%clk 0:02:02.7]} 19... Bc6
{[%clk 0:00:43.1]} 20. Rfe1 {[%clk 0:01:52.1]} 20... Be7 {[%clk 0:00:19]} 21.
Bd5 {[%clk 0:01:49.3]} 21... Rc8 {[%clk 0:00:15]} 22. Be6 {[%clk 0:01:40.2]}
22... Bd7 {[%clk 0:00:16.2]} 23. c6 {[%clk 0:01:37.2]} 23... Bxe6 {[%clk
0:00:15.4]} 24. Qxe6 {[%clk 0:01:36.4]} 24... Nd6 {[%clk 0:00:14.3]} 25. Nxd6
{[%clk 0:01:29.4]} 25... Qxd6 {[%clk 0:00:14.6]} 26. Ba5+ {[%clk 0:01:29.3]}
26... Ke8 {[%clk 0:00:15.6]} 27. Qxc8+ {[%clk 0:01:28.5]} 27... Kf7 {[%clk
0:00:16.8]} 28. Qxh8 {[%clk 0:01:25.1]} 28... Qxa3 {[%clk 0:00:18.1]} 29. c7
{[%clk 0:01:21.5]} 29... Nxc7 {[%clk 0:00:19.3]} 30. Rxc7 {[%clk 0:01:17.2]}
30... Qxd3 {[%clk 0:00:19.3]} 31. Bb4 {[%clk 0:01:09.8]} 31... Kg6 {[%clk
0:00:19]} 32. Qe8+ {[%clk 0:01:07.1]} 32... Kh6 {[%clk 0:00:19.3]} 33. Qxe7
{[%clk 0:01:07.3]} 33... Qg6 {[%clk 0:00:20.4]} 34. Nh4 {[%clk 0:01:05.8]} 1-0

[Event "*** Biggest EVER Titled Tuesday"]
[Site "Chess.com"]
[Date "2018.04.17"]
[Round "7"]
[White "nurmiTV"]
[Black "Abund"]
[Result "0-1"]
[WhiteElo "2451"]
[BlackElo "2478"]
[TimeControl "180+2"]
[EndTime "14:36:50 PDT"]
[Termination "Abund won by resignation"]

1. c4 {[%clk 0:02:59.2]} 1... e5 {[%clk 0:03:00.4]} 2. Nc3 {[%clk 0:03:00.6]}
2... Nf6 {[%clk 0:03:01.6]} 3. g3 {[%clk 0:03:02.2]} 3... Nc6 {[%clk 0:03:01.1]}
4. Bg2 {[%clk 0:03:03.2]} 4... Bb4 {[%clk 0:03:02.1]} 5. Nf3 {[%clk 0:03:02.5]}
5... O-O {[%clk 0:03:01]} 6. O-O {[%clk 0:03:03.3]} 6... Re8 {[%clk 0:02:48.1]}
7. d3 {[%clk 0:02:57.9]} 7... Bxc3 {[%clk 0:02:33.2]} 8. bxc3 {[%clk 0:02:56.6]}
8... e4 {[%clk 0:02:34.5]} 9. Nd4 {[%clk 0:02:56.9]} 9... h6 {[%clk 0:02:21.6]}
10. Bf4 {[%clk 0:02:47.5]} 10... d6 {[%clk 0:02:09.1]} 11. h3 {[%clk 0:02:33]}
11... Ne5 {[%clk 0:02:02.6]} 12. Rb1 {[%clk 0:02:16.4]} 12... c5 {[%clk
0:01:52.5]} 13. Nc2 {[%clk 0:02:03.3]} 13... exd3 {[%clk 0:01:23]} 14. exd3
{[%clk 0:02:05.2]} 14... Bf5 {[%clk 0:01:17.1]} 15. Ne1 {[%clk 0:01:38.9]} 15...
Rb8 {[%clk 0:01:10.8]} 16. g4 {[%clk 0:01:35]} 16... Bh7 {[%clk 0:01:04.3]} 17.
Rxb7 {[%clk 0:01:15.2]} 17... Rxb7 {[%clk 0:01:00.4]} 18. Bxb7 {[%clk
0:01:17.1]} 18... Qa5 {[%clk 0:00:58.6]} 19. d4 {[%clk 0:00:25.7]} 19... Nxc4
{[%clk 0:00:53.9]} 20. dxc5 {[%clk 0:00:16]} 20... Qxc5 {[%clk 0:00:53.1]} 21.
Bg2 {[%clk 0:00:09.2]} 21... Be4 {[%clk 0:00:49.9]} 22. Nf3 {[%clk 0:00:08.5]}
22... Nd5 {[%clk 0:00:46]} 23. Bd2 {[%clk 0:00:08]} 23... Nxd2 {[%clk
0:00:39.8]} 24. Qxd2 {[%clk 0:00:09.9]} 24... Qxc3 {[%clk 0:00:40.7]} 25. Qd1
{[%clk 0:00:08.7]} 25... Nf4 {[%clk 0:00:40.3]} 26. Qd2 {[%clk 0:00:02.3]} 26...
Qxd2 {[%clk 0:00:37.9]} 27. Nxd2 {[%clk 0:00:04.2]} 27... Bxg2 {[%clk
0:00:38.5]} 0-1

[Event "*** Biggest EVER Titled Tuesday"]
[Site "Chess.com"]
[Date "2018.04.17"]
[Round "7"]
[White "platy3"]
[Black "Sam_ChessMood"]
[Result "0-1"]
[WhiteElo "2659"]
[BlackElo "2641"]
[TimeControl "180+2"]
[EndTime "14:36:56 PDT"]
[Termination "Sam_ChessMood won by resignation"]

1. e4 {[%clk 0:03:01.9]} 1... c5 {[%clk 0:03:00.7]} 2. Nf3 {[%clk 0:03:00.8]}
2... d6 {[%clk 0:03:02.1]} 3. d4 {[%clk 0:03:01.1]} 3... cxd4 {[%clk 0:03:03.3]}
4. Nxd4 {[%clk 0:03:02.6]} 4... Nf6 {[%clk 0:03:04.7]} 5. Nc3 {[%clk 0:03:04.2]}
5... a6 {[%clk 0:03:06.2]} 6. Bg5 {[%clk 0:03:05.7]} 6... e6 {[%clk 0:03:06.5]}
7. f4 {[%clk 0:03:05.6]} 7... h6 {[%clk 0:03:07.8]} 8. Bh4 {[%clk 0:03:06]} 8...
Qb6 {[%clk 0:03:09]} 9. Qd2 {[%clk 0:03:03.7]} 9... Qxb2 {[%clk 0:03:08]} 10.
Rb1 {[%clk 0:03:05.1]} 10... Qa3 {[%clk 0:03:09.2]} 11. e5 {[%clk 0:03:06.4]}
11... dxe5 {[%clk 0:03:10.5]} 12. fxe5 {[%clk 0:03:07.9]} 12... Nfd7 {[%clk
0:03:10.4]} 13. Ne4 {[%clk 0:03:07.1]} 13... Qxa2 {[%clk 0:03:11.7]} 14. Rd1
{[%clk 0:03:08.5]} 14... Qb2 {[%clk 0:03:11]} 15. Qe3 {[%clk 0:02:38.5]} 15...
Bc5 {[%clk 0:03:11.1]} 16. Be2 {[%clk 0:02:32.2]} 16... Nc6 {[%clk 0:02:44.2]}
17. Nxe6 {[%clk 0:02:17.7]} 17... Qb4+ {[%clk 0:02:24.7]} 18. c3 {[%clk
0:01:51.4]} 18... Bxe3 {[%clk 0:02:24.9]} 19. cxb4 {[%clk 0:01:45.1]} 19... fxe6
{[%clk 0:02:09.9]} 20. Rf1 {[%clk 0:01:08.1]} 20... g5 {[%clk 0:01:59.3]} 21.
Nd6+ {[%clk 0:01:07.9]} 21... Kd8 {[%clk 0:01:53.9]} 22. Bg3 {[%clk 0:00:55.2]}
22... Kc7 {[%clk 0:01:52.6]} 23. Rf7 {[%clk 0:00:51.4]} 23... Rd8 {[%clk
0:01:34.9]} 24. Bg4 {[%clk 0:00:46.9]} 24... Bf4 {[%clk 0:01:29.1]} 25. Bxe6
{[%clk 0:00:39]} 25... Nxe5 {[%clk 0:01:27.2]} 26. Bxf4 {[%clk 0:00:37.9]} 26...
gxf4 {[%clk 0:01:24.6]} 27. Rxf4 {[%clk 0:00:37]} 27... Nb6 {[%clk 0:00:54.8]}
28. Bxc8 {[%clk 0:00:26.2]} 28... Nxc8 {[%clk 0:00:39.2]} 29. Nxc8 {[%clk
0:00:25.4]} 29... Rxd1+ {[%clk 0:00:39.1]} 30. Kxd1 {[%clk 0:00:25.6]} 30...
Rxc8 {[%clk 0:00:40.7]} 31. Rf6 {[%clk 0:00:26.1]} 31... Rd8+ {[%clk 0:00:41.4]}
32. Ke2 {[%clk 0:00:26.8]} 32... Rd6 {[%clk 0:00:42.6]} 33. Rf5 {[%clk
0:00:28.1]} 33... Nc6 {[%clk 0:00:42.4]} 0-1

[Event "*** Biggest EVER Titled Tuesday"]
[Site "Chess.com"]
[Date "2018.04.17"]
[Round "7"]
[White "lukas_111111"]
[Black "BlackBoarder"]
[Result "1-0"]
[WhiteElo "2501"]
[BlackElo "2228"]
[TimeControl "180+2"]
[EndTime "14:37:08 PDT"]
[Termination "lukas_111111 won by resignation"]

1. e4 {[%clk 0:03:01.9]} 1... e6 {[%clk 0:03:00.7]} 2. d4 {[%clk 0:03:02.7]}
2... d5 {[%clk 0:03:01.6]} 3. Nc3 {[%clk 0:03:04.4]} 3... Bb4 {[%clk 0:03:02.1]}
4. e5 {[%clk 0:03:05.7]} 4... Ne7 {[%clk 0:03:02.5]} 5. a3 {[%clk 0:03:07.3]}
5... Bxc3+ {[%clk 0:03:03.4]} 6. bxc3 {[%clk 0:03:09.2]} 6... c5 {[%clk
0:03:04.6]} 7. Qg4 {[%clk 0:03:10.4]} 7... O-O {[%clk 0:03:05]} 8. Bd3 {[%clk
0:03:09.8]} 8... f5 {[%clk 0:03:04.6]} 9. exf6 {[%clk 0:03:10]} 9... Rxf6 {[%clk
0:03:05]} 10. Bg5 {[%clk 0:03:06.7]} 10... Rf7 {[%clk 0:03:05.5]} 11. Qh5 {[%clk
0:03:05.6]} 11... g6 {[%clk 0:03:05.7]} 12. Qd1 {[%clk 0:03:06.2]} 12... Qa5
{[%clk 0:03:04.7]} 13. Nf3 {[%clk 0:03:06.1]} 13... Nd7 {[%clk 0:01:51.8]} 14.
Qd2 {[%clk 0:03:03.1]} 14... Nc6 {[%clk 0:01:45.3]} 15. h4 {[%clk 0:02:57.3]}
15... cxd4 {[%clk 0:01:43.4]} 16. cxd4 {[%clk 0:02:57.8]} 16... Qxd2+ {[%clk
0:01:43.8]} 17. Bxd2 {[%clk 0:02:38.6]} 17... e5 {[%clk 0:01:41.8]} 18. dxe5
{[%clk 0:02:32.7]} 18... Ndxe5 {[%clk 0:01:42.4]} 19. Nxe5 {[%clk 0:02:26.9]}
19... Nxe5 {[%clk 0:01:42.7]} 20. Be2 {[%clk 0:02:24.6]} 20... Bf5 {[%clk
0:01:16.6]} 21. Bc3 {[%clk 0:02:24.3]} 21... Re8 {[%clk 0:01:16.4]} 22. O-O-O
{[%clk 0:02:24.4]} 22... Rc7 {[%clk 0:00:33.8]} 23. Kb2 {[%clk 0:02:17.9]} 23...
Nc4+ {[%clk 0:00:09.3]} 24. Bxc4 {[%clk 0:02:18]} 24... Rxc4 {[%clk 0:00:06.1]}
25. Rd4 {[%clk 0:01:47.6]} 25... Rxd4 {[%clk 0:00:05.4]} 26. Bxd4 {[%clk
0:01:48.7]} 26... Re2 {[%clk 0:00:07]} 27. Rc1 {[%clk 0:01:44.3]} 27... a6
{[%clk 0:00:08.1]} 28. Kb3 {[%clk 0:01:34.4]} 28... Re8 {[%clk 0:00:08.1]} 29.
f3 {[%clk 0:01:27.5]} 29... h5 {[%clk 0:00:08.1]} 30. Kb4 {[%clk 0:01:09.2]}
30... Kf7 {[%clk 0:00:08.6]} 31. c4 {[%clk 0:01:02.7]} 31... dxc4 {[%clk
0:00:08.3]} 32. Rxc4 {[%clk 0:01:02.7]} 32... Re2 {[%clk 0:00:05.4]} 33. g3
{[%clk 0:00:58.6]} 33... Rb2+ {[%clk 0:00:05.4]} 34. Bxb2 {[%clk 0:00:58.3]} 1-0

[Event "*** Biggest EVER Titled Tuesday"]
[Site "Chess.com"]
[Date "2018.04.17"]
[Round "7"]
[White "SCIM"]
[Black "GianmarcoVaR"]
[Result "0-1"]
[WhiteElo "2351"]
[BlackElo "2522"]
[TimeControl "180+2"]
[EndTime "14:37:13 PDT"]
[Termination "GianmarcoVaR won by resignation"]

1. d4 {[%clk 0:03:01.9]} 1... Nf6 {[%clk 0:02:59.1]} 2. c4 {[%clk 0:03:01.8]}
2... e6 {[%clk 0:02:50.6]} 3. Nc3 {[%clk 0:03:00.6]} 3... Bb4 {[%clk 0:02:51.3]}
4. Qc2 {[%clk 0:03:00.6]} 4... O-O {[%clk 0:02:52]} 5. Nf3 {[%clk 0:02:59.8]}
5... d6 {[%clk 0:02:48.5]} 6. Bg5 {[%clk 0:02:57.7]} 6... Nbd7 {[%clk
0:02:46.2]} 7. e3 {[%clk 0:02:55.9]} 7... b6 {[%clk 0:02:27.1]} 8. Bd3 {[%clk
0:02:53]} 8... h6 {[%clk 0:02:28.2]} 9. Bh4 {[%clk 0:02:53.6]} 9... Bb7 {[%clk
0:02:28.7]} 10. a3 {[%clk 0:02:42.4]} 10... Bxc3+ {[%clk 0:02:28.5]} 11. Qxc3
{[%clk 0:02:42.5]} 11... g5 {[%clk 0:02:24.3]} 12. Bg3 {[%clk 0:02:40.8]} 12...
Ne4 {[%clk 0:02:24.3]} 13. Qc2 {[%clk 0:02:35.5]} 13... f5 {[%clk 0:02:23.7]}
14. h4 {[%clk 0:02:25.1]} 14... g4 {[%clk 0:02:18.7]} 15. Nd2 {[%clk 0:02:25.1]}
15... Nxg3 {[%clk 0:02:17.3]} 16. fxg3 {[%clk 0:02:22.9]} 16... Bxg2 {[%clk
0:02:19.2]} 17. Rg1 {[%clk 0:02:22.9]} 17... Bb7 {[%clk 0:02:20.2]} 18. O-O-O
{[%clk 0:02:20.8]} 18... Qf6 {[%clk 0:02:06.5]} 19. Rgf1 {[%clk 0:02:17.7]}
19... Qg7 {[%clk 0:02:07.1]} 20. Rf2 {[%clk 0:02:13.2]} 20... Nf6 {[%clk
0:02:07]} 21. Rdf1 {[%clk 0:02:12.5]} 21... Nh5 {[%clk 0:02:07.9]} 22. Rg1
{[%clk 0:02:09.7]} 22... Rf7 {[%clk 0:02:07.9]} 23. d5 {[%clk 0:02:08.6]} 23...
exd5 {[%clk 0:02:01.6]} 24. Bxf5 {[%clk 0:02:08.4]} 24... Bc8 {[%clk 0:01:57.5]}
25. Rgf1 {[%clk 0:01:38.8]} 25... Bxf5 {[%clk 0:01:43.7]} 26. Rxf5 {[%clk
0:01:38.4]} 26... Raf8 {[%clk 0:01:32.8]} 27. cxd5 {[%clk 0:01:14.5]} 27... Nxg3
{[%clk 0:01:30.3]} 28. Rxf7 {[%clk 0:01:13.8]} 28... Rxf7 {[%clk 0:01:31.7]} 29.
Rxf7 {[%clk 0:01:14.1]} 29... Qxf7 {[%clk 0:01:32.7]} 30. Qc4 {[%clk 0:01:08]}
30... h5 {[%clk 0:01:30.8]} 31. Kc2 {[%clk 0:01:03.5]} 31... Nf5 {[%clk
0:01:23.9]} 32. Qf4 {[%clk 0:00:59.8]} 32... Nxh4 {[%clk 0:01:21.1]} 33. Qh2
{[%clk 0:00:43]} 33... Nf3 {[%clk 0:01:17.2]} 34. Nxf3 {[%clk 0:00:38.9]} 34...
gxf3 {[%clk 0:00:53.8]} 35. e4 {[%clk 0:00:27.5]} 35... f2 {[%clk 0:00:53.8]}
36. Qg2+ {[%clk 0:00:28.2]} 36... Kh7 {[%clk 0:00:54.3]} 37. Qf1 {[%clk
0:00:28.9]} 37... Qf3 {[%clk 0:00:54.2]} 0-1

[Event "*** Biggest EVER Titled Tuesday"]
[Site "Chess.com"]
[Date "2018.04.17"]
[Round "7"]
[White "SelfishShellfish"]
[Black "nochewycandy"]
[Result "1-0"]
[WhiteElo "2179"]
[BlackElo "2062"]
[TimeControl "180+2"]
[EndTime "14:37:15 PDT"]
[Termination "SelfishShellfish won by checkmate"]

1. d4 {[%clk 0:03:01.9]} 1... g6 {[%clk 0:02:59.9]} 2. e4 {[%clk 0:03:02.2]}
2... Bg7 {[%clk 0:03:00.9]} 3. Nc3 {[%clk 0:03:03]} 3... d6 {[%clk 0:03:01.3]}
4. f4 {[%clk 0:03:03.8]} 4... a6 {[%clk 0:03:01]} 5. Nf3 {[%clk 0:03:04.9]} 5...
b5 {[%clk 0:03:02.1]} 6. Bd3 {[%clk 0:03:05.8]} 6... Nd7 {[%clk 0:03:03.4]} 7.
O-O {[%clk 0:03:00.4]} 7... Nh6 {[%clk 0:03:04.4]} 8. Ne2 {[%clk 0:02:52.8]}
8... c5 {[%clk 0:03:04.5]} 9. c3 {[%clk 0:02:53.6]} 9... Bb7 {[%clk 0:03:02.7]}
10. h3 {[%clk 0:02:52.6]} 10... f5 {[%clk 0:02:55.1]} 11. e5 {[%clk 0:02:32.4]}
11... dxe5 {[%clk 0:02:51.3]} 12. fxe5 {[%clk 0:02:32.6]} 12... e6 {[%clk
0:02:43.2]} 13. a4 {[%clk 0:02:29.3]} 13... Qb6 {[%clk 0:02:42]} 14. axb5 {[%clk
0:01:52.9]} 14... axb5 {[%clk 0:02:42.6]} 15. Rxa8+ {[%clk 0:01:54.8]} 15...
Bxa8 {[%clk 0:02:44.2]} 16. Be3 {[%clk 0:01:38]} 16... cxd4 {[%clk 0:02:40.1]}
17. cxd4 {[%clk 0:01:38.7]} 17... Bd5 {[%clk 0:02:39.9]} 18. Qd2 {[%clk
0:01:25.9]} 18... Nf7 {[%clk 0:02:40.3]} 19. Nf4 {[%clk 0:01:20.2]} 19... Bxf3
{[%clk 0:02:35.1]} 20. Rxf3 {[%clk 0:01:19]} 20... Qa6 {[%clk 0:02:17.6]} 21.
Qb4 {[%clk 0:01:15.7]} 21... g5 {[%clk 0:01:48]} 22. Bxb5 {[%clk 0:01:05.5]}
22... Qa1+ {[%clk 0:01:10.9]} 23. Rf1 {[%clk 0:01:03.1]} 23... Qa7 {[%clk
0:01:01]} 24. Nxe6 {[%clk 0:01:00.7]} 24... Bxe5 {[%clk 0:01:01.9]} 25. Rxf5
{[%clk 0:00:30.3]} 25... Bd6 {[%clk 0:00:34.2]} 26. Qa4 {[%clk 0:00:26.5]} 26...
Qxa4 {[%clk 0:00:22]} 27. Bxa4 {[%clk 0:00:28.4]} 27... Ke7 {[%clk 0:00:18.8]}
28. Nxg5 {[%clk 0:00:22.3]} 28... Nd8 {[%clk 0:00:17.2]} 29. Ne4 {[%clk
0:00:19.1]} 29... Bb4 {[%clk 0:00:17.5]} 30. Bg5+ {[%clk 0:00:20]} 30... Ke6
{[%clk 0:00:18.7]} 31. Rb5 {[%clk 0:00:18.2]} 31... Be7 {[%clk 0:00:15.1]} 32.
Bb3# {[%clk 0:00:19.6]} 1-0